Cogmind - Beta 17 @@@ ROGUE MODE // 2026.07.15 @ 10:12:42 Player: pinbox Result: Destroyed by FH-E5M(R) with Subdweller Machine Gun Performance ------------- Evolutions (0) 0 Regions Visited (2) 400 Robots Destroyed (17) 85 Value Destroyed (388) 388 Prototype IDs (0) 0 Alien Tech Used (0) 0 Bonus (0) 0 TOTAL SCORE: 873 Bonus ------- None Cogmind --------- Core Integrity 0/250 Matter 276/300 Energy 125/125 System Corruption 0% Temperature Cool (0) Movement Treading (160) Location -10/Subcaves Parts ------- > --- POWER (1) -------- Light Ion Engine > --- PROPULSION (2) --- Light Treads Light Treads > --- UTILITY (2) ------ Medium Storage Unit > --- WEAPON (2) ------- Heavy Assault Rifle Heavy Assault Rifle > --- INVENTORY (10) --- Subdweller Power Source Light Treads Structural Scanner Heavy Assault Rifle Heavy Assault Rifle Grenade Launcher Peak State ------------ > --- POWER ------------ Light Nuclear Core > --- PROPULSION ------- Light Treads Light Treads > --- UTILITY ---------- Medium Storage Unit Seismic Detector > --- WEAPON ----------- Heavy Assault Rifle Heavy Assault Rifle > --- INVENTORY -------- Light Ion Engine Subdweller Power Source Light Treads Structural Scanner Heavy Assault Rifle Heavy Assault Rifle Grenade Launcher [Rating: 12] Favorites ----------- Power Light Nuclear Core Engine Ion Engine Power Core Light Nuclear Core Propulsion Light Treads Treads Light Treads Utility Seismic Detector Device Seismic Detector Storage Small Storage Unit Weapon Heavy Assault Rifle Energy Gun Small Laser Ballistic Gun Heavy Assault Rifle Build | -11 -10 -10 ------- Run | Yrd Mat Sub Slots Evolved . | . . . Power . | . . . Propulsion . | . . . Utility . | . . . Weapon . | . . . Parts Attached 15 | 7 7 1 Power 3 | 1 1 1 Engine 2 | 1 . 1 Core 1 | . 1 . Reactor . | . . . Propulsion 3 | 2 1 . Treads 3 | 2 1 . Leg . | . . . Wheel . | . . . Hover . | . . . Flight . | . . . Utility 3 | 2 1 . Device 1 | 1 . . Storage 2 | 1 1 . Processor . | . . . Hackware . | . . . Protection . | . . . Artifact . | . . . Weapon 6 | 2 4 . Energy Gun 2 | 2 . . Energy Cannon . | . . . Ballistic Gun 4 | . 4 . Ballistic Cannon . | . . . Launcher . | . . . Special Weapon . | . . . Impact Weapon . | . . . Slashing Weapon . | . . . Piercing Weapon . | . . . Special Melee Weapon . | . . . Unidentified Prototypes . | . . . Parts Lost 2 | . . 2 Power 1 | . . 1 Propulsion . | . . . Utility 1 | . . 1 Weapon . | . . . Highest Loss Streak 2 | . . 2 To Critical Strikes . | . . . Average Backups 4 | . 4 6 Power 1 | . 1 1 Propulsion . | . . 1 Utility . | . . 1 Weapon 2 | . 2 3 Tool/Special . | . . . Unused Backups 5 | . 2 3 Power 1 | . . 1 Propulsion 1 | . 1 . Utility 1 | . . 1 Weapon 2 | . 1 1 Tool/Special . | . . . Average Slot Usage (%) 99 | . 99 99 Engine 1 | . 1 . Core 12 | . 12 13 Treads 27 | . 27 28 Device 13 | . 13 14 Storage 14 | . 14 14 Energy Gun 1 | . 1 . Ballistic Gun 26 | . 26 28 Peak Build Rating 12 | 7 11 12 Average Rating 10 | 4 10 11 On Entrance 6 | . 7 11 Avg Prop Armor Cover (%) . | . . . Naked Turns . | . . . Heaviest Build 22 | 13 22 22 Greatest Support 40 | 40 40 40 Greatest Overweight (x) 7 | . 7 . Average Overweight (x) . | . . . Largest Inventory Capacity 10 | 8 10 10 Average Capacity 8 | 7 8 10 Most Carried 7 | 1 6 7 Average Carried 4 | . 4 6 Final Capacity 10 | 8 10 10 Final Carried 6 | 1 6 6 Class Distribution -------------------- 60% | Mutant 39% | Scavenger-Mutant Dominant Class ---------------- Mutant | -10/Materials Scavenger-Mutant | -10/Subcaves Resources | -11 -10 -10 ----------- Run | Yrd Mat Sub Matter Collected 576 | 270 306 . Remotely . | . . . Salvage Created 616 | 42 574 . Parts 44 | 5 39 . Haulers Intercepted 2 | . 2 . Recyclers Shooed . | . . . Parts Field Recycled . | . . . Retrieved Matter . | . . . Parts Self-Destructed . | . . . Prevented . | . . . Parts Restored . | . . . Kills | -11 -10 -10 ------- Run | Yrd Mat Sub Combat Hostiles Destroyed 11 | . 11 . Guns 11 | . 11 . Classes Destroyed 5 | 1 4 . Tunneler 2 | 2 . . Hauler 2 | . 2 . Watcher 2 | . 2 . Swarmer 3 | . 3 . Grunt 8 | . 8 . Best Kill Streak 6 | 1 6 . Combat Bots Only 6 | . 6 . Max Kills in Single Turn 2 | 1 2 . Gunslinging 1 | . 1 . Exploded . | . . . Melee . | . . . Uniques/NPCs Destroyed . | . . . Combat | -11 -10 -10 -------- Run | Yrd Mat Sub Hostile Shots Fired 70 | . 57 13 Missed 20 | . 19 1 Hits 50 | . 38 12 Projectile 50 | . 38 12 Critical Strikes 1 | . 1 . Damage Taken 796 | . 534 262 Core 257 | . 140 117 Absorbed by Shields . | . . . Core Remaining (%) 100 | 100 . . Volleys Fired 37 | 2 32 3 Largest 2 | 2 2 2 Hottest 80 | 80 46 46 Shots Fired 74 | 4 64 6 Gun 74 | 4 64 6 Cannon . | . . . Launcher . | . . . Special . | . . . Kinetic 70 | . 64 6 Thermal 4 | 4 . . Explosive . | . . . Electromagnetic . | . . . Robot Hit Streak 11 | 1 11 6 Robot Miss Streak 4 | 1 4 . Penetration Max . | . . . Secondary Targets 2 | . 2 . Max Gunslinging Chain 1 | . 1 . Shots Hit Robots 50 | 2 42 6 Core Hits 21 | 2 19 . Critical Kills . | . . . Critical Parts Destroyed . | . . . Critical Strikes . | . . . Melee Attacks . | . . . Impact . | . . . Slashing . | . . . Piercing . | . . . Sneak Attacks . | . . . Combat Hostiles . | . . . Follow-up Attacks . | . . . Damage Inflicted 693 | 21 672 . Guns 693 | 21 672 . Cannons . | . . . Explosions . | . . . Melee . | . . . Ramming . | . . . Kinetic 672 | . 672 . Thermal 21 | 21 . . Explosive . | . . . Electromagnetic . | . . . Impact . | . . . Slashing . | . . . Piercing . | . . . Highest Corruption . | . . . Average Corruption . | . . . Corruption Purged . | . . . Corruption Blocked . | . . . Overload Shots . | . . . Overflow Damage . | . . . Projectiles . | . . . Explosions . | . . . Melee . | . . . Knockbacks . | . . . Impact . | . . . Kinetic . | . . . Secondary . | . . . Self-Inflicted Damage . | . . . Shots . | . . . Rammed . | . . . Targets Rammed . | . . . Kicked . | . . . Crushed . | . . . Highest Temperature 18 | 18 15 . Average Temperature 7 | 12 5 . Received Heat Transfer 153 | . 153 . Siege Activations . | . . . Martial Activations . | . . . Shielding Activations . | . . . Robots Disrupted . | . . . Combat Hostiles . | . . . Robots Corrupted . | . . . Combat Hostiles . | . . . Parts Fried . | . . . Impact Corruptions . | . . . Robots Melted . | . . . Combat Hostiles . | . . . Parts Melted . | . . . Heat Transferred 50 | 50 . . Parts Sabotaged . | . . . Parts Stolen . | . . . Parts Stripped . | . . . Power Chain Reactions . | . . . Alert | -11 -10 -10 ------- Run | Yrd Mat Sub Maximum Alert Level . | . . . Low Security (%) 100 | 100 100 . Level 1 . | . . . Level 2 . | . . . Level 3 . | . . . Level 4 . | . . . Level 5 . | . . . High Security . | . . . Max Security . | . . . Peak Influence 156 | 5 156 . Initial . | . . . Average 43 | . 47 . Influence Increases 361 | 10 351 . Destroy 0b10 Robot/C 220 | . 220 . Destroy 0b10 Robot/NC 30 | 10 20 . Destroy Leader 48 | . 48 . Successful Hack 31 | . 31 . Disable Machine 15 | . 15 . Destroy Structure 2 | . 2 . Lose Combat Pursuer 15 | . 15 . Influence Decreases 361 | 10 351 . Time Decay 361 | 10 351 . Squads Dispatched 1 | . 1 . Investigation . | . . . Extermination . | . . . Reinforcement 1 | . 1 . Assault . | . . . Garrison . | . . . Intercept . | . . . Searches Triggered . | . . . Construction Impeded . | . . . Haulers Reinforced . | . . . Active Scanning Responses . | . . . Cargo Convoy Interrupts . | . . . Stealth | -11 -10 -10 --------- Run | Yrd Mat Sub Distress Signals 3 | . 3 . Communications Jammed . | . . . Distress Signals . | . . . Times Spotted 22 | . 20 2 Peak Tracking Total 3 | . 3 2 Tactical Retreats 1 | . 1 . Traps | -11 -10 -10 ------- Run | Yrd Mat Sub Traps Triggered 5 | . 5 . Indirectly . | . . . Trap Hack Attempts . | . . . Triggered . | . . . Disarmed . | . . . Reprogrammed . | . . . Reused . | . . . Traps Extracted . | . . . Installed . | . . . Triggered . | . . . Machines | -11 -10 -10 ---------- Run | Yrd Mat Sub Machines Disabled 1 | . 1 . Max in Single Turn 1 | . 1 . Machines Repaired . | . . . Machines Dismantled . | . . . Machines Sabotaged . | . . . Overloaded Fab Kills . | . . . Hacking | -11 -10 -10 --------- Run | Yrd Mat Sub Machines Accessed 6 | . 6 . Terminals 6 | . 6 . Fabricators . | . . . Repair Stations . | . . . Recycling Units . | . . . Scanalyzers . | . . . Garrison Access . | . . . Total Hacks 32 | . 32 . Successful 20 | . 20 . Failed 12 | . 12 . Catastrophic 1 | . 1 . Database Lockouts . | . . . Manual 25 | . 25 . Terminals 32 | . 32 . Fabricators . | . . . Repair Stations . | . . . Recycling Units . | . . . Scanalyzers . | . . . Garrison Access . | . . . Terminal Hacks 8 | . 8 . Emergency Access Points 1 | . 1 . Assault Status 1 | . 1 . Hauler Manifests 1 | . 1 . Zone Layout 5 | . 5 . Fabricator Hacks . | . . . Repair Station Hacks . | . . . Recycling Unit Hacks . | . . . Scanalyzer . | . . . Garrison Access Hacks . | . . . Unauthorized Hacks 12 | . 12 . Terminals 12 | . 12 . Botnet 6 | . 6 . Skim 6 | . 6 . Fabricators . | . . . Repair Stations . | . . . Recycling Units . | . . . Scanalyzers . | . . . Garrison Access . | . . . Data Cores Recovered . | . . . Used . | . . . Hacking Detections 6 | . 6 . Full Trace Events . | . . . Feedback Events . | . . . Feedback Blocked . | . . . Robot Schematics Acquired . | . . . Robots Built . | . . . Authchips . | . . . Time . | . . . Total Robot Build Rating . | . . . Part Schematics Acquired . | . . . Parts Built . | . . . Authchips . | . . . Time . | . . . Total Part Build Rating . | . . . Part Studies Acquired . | . . . Parts Repaired . | . . . Time . | . . . Parts Recycled . | . . . Recycled Matter . | . . . Retrieved Matter . | . . . Retrieved Components . | . . . Parts Scanalyzed . | . . . Part Schematics Acquired . | . . . Parts Damaged . | . . . Bothacking | -11 -10 -10 ------------ Run | Yrd Mat Sub Used RIF Installer . | . . . Robots Hacked . | . . . Non-combat . | . . . Combat . | . . . Robot Hacks Applied . | . . . Relay Couplers Released . | . . . Fabnet Peak Effective % . | . . . Robots Rewired . | . . . Allies Hacked . | . . . Hacks Repelled . | . . . Allies | -11 -10 -10 -------- Run | Yrd Mat Sub Total Allies . | . . . Largest Group . | . . . Highest-Rated Group . | . . . Highest-Rated Ally . | . . . Total Orders . | . . . Ally Attacks . | . . . Total Damage . | . . . Kills . | . . . Allies Corrupted . | . . . Allies Melted . | . . . Intel | -11 -10 -10 ------- Run | Yrd Mat Sub Active Infowar (turns) 1301 | 21 1095 185 Seismic 1301 | 21 1095 185 Robot Analysis Total . | . . . Derelict Logs Recovered . | . . . Drone Launches . | . . . Drone Recoveries . | . . . Exploration | -11 -10 -10 ------------- Run | Yrd Mat Sub Turns Passed 1408 | 122 1100 186 Spaces Moved 771 | 65 600 106 Core 4 | 3 1 . Treads 767 | 62 599 106 Legs . | . . . Wheels . | . . . Hover . | . . . Flight . | . . . Fastest Speed 50 | 50 160 160 Average Speed 160 | 154 161 160 Slowest Speed 400 | 160 400 160 Overloaded Moves . | . . . Propulsion Burnouts . | . . . Robots Hopped . | . . . Potential Cave-ins . | . . . Cave-ins Triggered . | . . . Exploration Rate (%) 33 | 4 87 8 Regions Visited 2 Branch Regions 1 Pre-discovered Areas . | . . . Known Exits Taken . | . . . Unknown Exits Taken 2 | 1 1 . Scrap Searched . | . . . Spaces Dug . | . . . Terrain Destroyed . | . . . Melee . | . . . Projectile . | . . . AOE . | . . . Terrain Rammed . | . . . Walls Destroyed . | . . . Machines Disabled . | . . . Actions | -11 -10 -10 --------- Run | Yrd Mat Sub Total 864 | 79 668 117 Wait 19 | 5 8 6 Move 769 | 64 599 106 Hop . | . . . Pick Up 10 | 1 8 1 Fast Attach 15 | 7 8 . Attach 3 | . 2 1 Detach 3 | . 3 . Swap 2 | . 2 . Drop 6 | . 6 . Fire 37 | 2 32 3 Melee . | . . . Ram . | . . . Kick . | . . . Crush . | . . . Escape Stasis . | . . . Rewire . | . . . Trap . | . . . Miscellaneous . | . . . Route ------- -11/Scrapyard -10/Materials (discovered 5 exits: [*Mat x3] / [*Min] / [*Sub]) -10/Subcaves (discovered 1 exit: Mat) History --------- Turn | Location | Event 6 | -11/Scrapyard | Discovered new exit (range 14) 123 | -11/Scrapyard | Entered Materials 316 | -10/Materials | Build established: Mutant 396 | -10/Materials | Discovered new exit (range 8) 438 | -10/Materials | Discovered new exit (range 13) 474 | -10/Materials | Discovered new exit (range 15) 760 | -10/Materials | Core integrity fell below 50% 869 | -10/Materials | Discovered new exit (range 6) 1111 | -10/Materials | Learned 4 Subcaves zone layouts 1150 | -10/Materials | Build established: Scavenger-Mutant 1215 | -10/Materials | Discovered new exit (range 6) 1223 | -10/Materials | Entered Subcaves 1224 | -10/Subcaves | Identified exit to Materials 1234 | -10/Subcaves | Shifting Twisted Machinery released Sub. Power Source 1246 | -10/Subcaves | Shifting Twisted Machinery released Battle Rifle 1386 | -10/Subcaves | Shifting Twisted Machinery released Mak. System Restoration Module 1406 | -10/Subcaves | Core integrity fell below 20% 1409 | -10/Subcaves | Destroyed by FH-E5M(R) with Subdweller Machine Gun Last Messages --------------- 01111_ >> SKIM: Stored Subcaves zone layouts (x4). 01161_ Destroyed Hover Unit. 01184_ >> SKIM: Loading Materials stockpile data (x5)... 01189_ K-01 Serf cleans the Terminal. 01215_ EXIT=FOUND LOCATION=UNKNOWN AMBIENT_HEAT=-10 GOAL=ESCAPE Loading 4 Subcaves zones... Sub. Power Source falls loose from the Twisted Machinery. Battle Rifle falls loose from the Twisted Machinery. 01254_ Acquired Sub. Power Source. Mak. System Restoration Module falls loose from the Twisted Machinery. 01399_ Lgt. Nuclear Core destroyed. 01408_ Seismic Detector destroyed. Map ----- +----------------------------------------------------+ | ## # "" "" #?????????????? | | # "" ["" #?????????????? | | "## "" #?????????????? | | #### # ### " ### " #?????????????? | | #########?##### #### #?????????????? | | ## ####????????####### " ##?????????????? | | ?# ####??????????# ##??????????????? | | ?# #????###?### #???????????????? | | ## #?####"### ##??????????????? | | # #?# """""" """"" #??????????????? | | # ##?# """"""""" #??????????????? | | # ## #??# """ ##??????????????? | | ## ### #??## #???????????????? | | ?# ##?## #???## #### ####???????????????? | | ?####???# ##???# #?## #??????????????????? | | ????????# ##### ### ##?????????????????? | | ????????# ## " ## #?????????????????? | | ????????# " ### " #?????????????????? | | ????????## #### ### """ ##????????????????? | | ?????????###??## ## ##""" ##???????????????? | | ???????????????#### ##"""" #???????????????? | | ??????????????????#"" """"## #???????????????? | | ??????????????????##"" "" " ##???????????????? | | ???????????????????#"" " "" #????????????????? | | ???????????????????# " !""" #????????????????? | | ????????????????""""""###@R ##????????????????? | | ?????????????????""""???##R ##?????????????????? | | ???????????????????"?????# ##??????????????????? | | ????????????????????????? ???????????????????? | | ????????????????????????? ??????????????????? | | ????????????????????????? #?????????????????? | | ?????????????????????????""""#?????????????????? | | ?????????????????????????" ? ?????????????????? | | ????????????????????????????? #????????????????? | | ??????????????????????????????#????????????????? | | ???????????????????????????????????????????????? | | ???????????????????????????????????????????????? | | ???????????????????????????????????????????????? | | ???????????????????????????????????????????????? | | ???????????????????????????????????????????????? | | ???????????????????????????????????????????????? | | ???????????????????????????????????????????????? | | ???????????????????????????????????????????????? | | ???????????????????????????????????????????????? | | ???????????????????????????????????????????????? | | ???????????????????????????????????????????????? | | ???????????????????????????????????????????????? | | ???????????????????????????????????????????????? | | ???????????????????????????????????????????????? | | ???????????????????????????????????????????????? | +----------------------------------------------------+ Best States ------------- Heat Dissipation 25 Energy Generation 14 Energy Capacity 250 Matter Stores 300 Matter Capacity 300 Sight Range 16 Terrain Scan Density 10 Evasion (%) 40 Recoil Reduction 2 Item Schematics ----------------- None Robot Schematics ------------------ None Fabricated ------------ Nothing Repaired ---------- Nothing Studied --------- None Alien Tech Used ----------------- None Achievements -------------- None Challenges ------------ None Game ------ Seed IonSubatomicHammerchucker Manual? 0 Play Time 00:10:12 Cumulative 55.1 hours Start 2026.07.15 @ 10:03:31 End 2026.07.15 @ 10:12:42 Sessions 1 Manual Loads 0 Difficulty Rogue Special Mode None Game No. 60 Rogue 60 Adventurer 0 Explorer 0 Win Type - Total 1 Types 1/0/0/0/0/0/0/0/0/0 Lore% 49 Gallery% 39 Achievement% 36 Wizard Run 0 Options --------- Layout 1 ASCII 0 Keyboard 1 Movement Numpad Keybinds 1 Fullscreen 2 Font 24/Smallcaps Map View 50x40 Zoom Use 0% Tactical HUD 1 Map Filters NONE Filters NONE Steam 1 RUN: edac5205-96a1-4868-83a6-fce1f41f72a8